fUSD/lending_fUSD_20240117
["ID","MTS","AMOUNT","RATE_DAILY","PERIOD"]
[311977992,1705527238723,1000.0,0.00017281,2]
[311977994,1705527262967,1000.0,0.00017108,2]
[311977997,1705527282722,1000.0,0.00017108,2]
[311978000,1705527302728,1000.0,0.00016937,2]
[311978002,1705527322728,1000.0,0.00016937,2]
[311978005,1705527340732,1000.0,0.00016937,2]
[311978008,1705527356754,1000.0,0.00016768,2]
[311978010,1705527374732,1000.0,0.00016768,2]
[311978012,1705527394728,1000.0,0.00016768,2]
[311978014,1705527410730,1000.0,0.000166,2]
[311978016,1705527430739,1000.0,0.000166,2]
[311978017,1705527446748,1000.0,0.000166,2]
[311978020,1705527466795,1000.0,0.00016434,2]
[311978022,1705527482755,1000.0,0.00016434,2]
[311978026,1705527500757,1000.0,0.00016434,2]
[311978028,1705527516755,1000.0,0.00016434,2]
[311978041,1705527561268,1000.0,0.0001627,2]
[311978042,1705527563851,-1000.0,0.00035258,60]
[311978043,1705527563874,-500.0,0.00035258,120]
[311978044,1705527563896,-1259.67102574,0.00035258,120]
[311978045,1705527563917,-247.94874752,0.00035258,120]
[311978046,1705527563938,-634.29742145,0.00035258,90]
[311978047,1705527563960,-13084.5600567,0.00035258,120]
[311978048,1705527563984,-2627.73240796,0.00035258,120]
[311978049,1705527564007,-1836726.29418969,0.00035258,32]
[311978050,1705527564030,-157.88711934,0.00035258,30]
[311978051,1705527564054,-846.60757527,0.00035258,30]
[311978052,1705527564078,-166.28656785,0.00035258,30]
[311978053,1705527564103,-164.18894959,0.00035258,120]
[311978054,1705527564125,-188.85764848,0.00035258,120]
[311978055,1705527564146,-1362.69716287,0.00035258,120]
[311978056,1705527564167,-373.68356373,0.00035258,120]
[311978057,1705527564188,-395.47529627,0.00035258,120]
[311978058,1705527564209,-454.89916491,0.00035258,30]
[311978059,1705527564233,-166.79289405,0.00035258,120]
[311978060,1705527564264,-239.22663333,0.00035258,120]
[311978061,1705527564292,-650.42358505,0.00035258,30]
[311978062,1705527564319,-403.48948147,0.00035258,120]
[311978063,1705527564347,-267433.66447029,0.00035258,120]
[311978064,1705527564375,-217.4300675,0.00035258,120]
[311978065,1705527564403,-477.40231189,0.00035258,120]
[311978066,1705527564428,-225.33609596,0.00035258,120]
[311978067,1705527564456,-162.42106799,0.00035258,30]
[311978068,1705527564484,-535.73823558,0.00035258,30]
[311978069,1705527564510,-676.60907088,0.00035258,120]
[311978070,1705527564538,-694.49160137,0.00035258,120]
[311978071,1705527564564,-679.24617094,0.00035258,30]
[311978072,1705527564591,-150.64137352,0.00035258,30]
[311978073,1705527564620,-2059.75756085,0.00035258,30]
[311978074,1705527564647,-281.05907294,0.00035258,120]
[311978075,1705527564674,-50382.02878548,0.00035258,60]
[311978076,1705527564701,-1087.0274845,0.00035258,120]
[311978077,1705527564728,-1474.36428153,0.00035258,30]
[311978078,1705527564752,-194.9650234,0.00035258,120]
[311978079,1705527564777,-1087.58464987,0.00035258,30]
[311978080,1705527564808,-179.91308211,0.00035258,30]
[311978081,1705527564833,-475.55194157,0.00035258,30]
[311978082,1705527564860,-218.95506692,0.00035258,120]
[311978083,1705527564886,-424.15985012,0.00035258,120]
[311978084,1705527564911,-458.60302804,0.00035258,30]
[311978085,1705527564954,-95000.0,0.00035258,30]
[311978086,1705527564978,-20137.05667451,0.00035258,30]
[311978087,1705527565006,-13900.0,0.00035258,120]
[311978088,1705527565031,-7000.0,0.00035258,50]
[311978089,1705527565059,-435.0,0.00035258,120]
[311978090,1705527565084,-484.4700365,0.00035258,30]
[311978092,1705527565110,-1029.0,0.00035258,120]
[311978093,1705527565135,-1970.005619,0.00035258,30]
[311978094,1705527565162,-1890.972651,0.00035258,30]
[311978095,1705527565187,-250.0,0.00035258,30]
[311978096,1705527565212,-250.0,0.00035258,30]
[311978097,1705527565237,-250.0,0.00035258,30]
[311978098,1705527565262,-250.0,0.00035258,30]
[311978099,1705527565287,-305.562532,0.00035258,30]
[311978100,1705527577464,-151.0,0.00030382,120]
[311978101,1705527577488,-300.0,0.00031,32]
[311978102,1705527577516,-151.0,0.00031002,30]
[311978103,1705527577547,-300.0,0.00032,33]
[311978104,1705527577581,-300.0,0.00033,34]
[311978105,1705527577606,-1223.81950152,0.000334,60]
[311978106,1705527577629,-187.0,0.0003345,36]
[311978107,1705527577655,-840.0,0.0003369,30]
[311978108,1705527577681,-7001.0,0.00034,30]
[311978109,1705527577704,-300.0,0.00034,35]
[311978110,1705527577734,-150.08545042,0.0003443,30]
[311978111,1705527577755,-373.01562759,0.000345,120]
[311978112,1705527577779,-399.40479443,0.0003468,30]
[311978113,1705527577805,-150.08545042,0.0003493,30]
[311978114,1705527577828,-150.0,0.00034952,120]
[311978115,1705527577856,-1657.82474087,0.00035,30]
[311978116,1705527577877,-2996.85969016,0.00035,30]
[311978117,1705527577900,-600.0,0.00035,36]
[311978118,1705527577922,-1406.7204011,0.00035,30]
[311978119,1705527577948,-150.0,0.00035255,120]
[311978120,1705527577983,-182.30086815,0.000355,30]
[311978121,1705527578249,-1050.0,0.00035616,32]
[311978122,1705527578273,-1200.0,0.00035616,37]
[311978123,1705527578295,-1350.0,0.00035616,42]
[311978124,1705527578317,-306.032204,0.00035616,47]
[311978125,1705527578343,-150.08545042,0.0003593,30]
[311978126,1705527578367,-1000.0,0.0003599,31]
[311978127,1705527578393,-2000.0,0.00036,120]
[311978128,1705527578417,-600.0,0.00036,37]
[311978129,1705527578440,-373.091308,0.00036,30]
[311978130,1705527578486,-150.0,0.00036438,31]
[311978131,1705527578511,-150.0,0.00036438,41]
[311978132,1705527578533,-150.0,0.00036438,50]
[311978133,1705527578555,-150.0,0.00036438,60]
[311978134,1705527578578,-150.0,0.00036438,70]
[311978135,1705527578600,-150.0,0.00036438,80]
[311978136,1705527578627,-150.0,0.00036438,90]
[311978137,1705527578651,-150.0,0.00036629,120]
[311978138,1705527578675,-150.08545042,0.0003693,30]
[311978139,1705527578699,-150.0,0.00037,30]
[311978140,1705527578722,-600.0,0.00037,38]
[311978141,1705527578746,-150.0,0.000372,30]
[311978142,1705527578768,-150.0,0.00037301,120]
[311978143,1705527578790,-150.0,0.000374,30]
[311978144,1705527578813,-2500.0,0.0003748,37]
[311978145,1705527578835,-203.96521146,0.000376,30]
[311978146,1705527578858,-195.56578892,0.000378,30]
[311978147,1705527578879,-263.32694042,0.000378,31]
[311978148,1705527578902,-150.0854504,0.0003793,30]
[311978149,1705527578924,-150.0,0.00037946,120]
[311978150,1705527578946,-150.5,0.0003797,120]
[311978151,1705527578968,-246.0,0.0003797,120]
[311978152,1705527578991,-153.0,0.0003797,120]
[311978153,1705527579014,-150.5,0.0003797,120]
[311978154,1705527579037,-150.5,0.0003797,120]
[311978155,1705527579059,-241.0,0.0003797,120]
[311978156,1705527579081,-195.06,0.0003797,120]
[311978157,1705527579105,-246.0,0.0003797,120]
[311978158,1705527579127,-281.41,0.0003797,120]
[311978159,1705527579151,-153.0,0.0003797,120]
[311978160,1705527579175,-241.0,0.0003797,120]
[311978161,1705527579198,-1574.0,0.0003797,120]
[311978162,1705527579221,-1574.0,0.0003797,120]
[311978163,1705527579243,-278.0,0.0003797,120]
[311978164,1705527579267,-391.0,0.0003797,120]
[311978165,1705527579289,-278.0,0.0003797,120]
[311978166,1705527579313,-391.0,0.0003797,120]
[311978167,1705527579335,-150.5,0.0003797,120]
[311978168,1705527579359,-150.5,0.0003797,120]
[311978169,1705527579386,-240.0,0.0003797,30]
[311978170,1705527579409,-150.5,0.0003797,120]
[311978171,1705527579432,-150.5,0.0003797,120]
[311978172,1705527579456,-240.0,0.0003797,30]
[311978173,1705527579478,-150.5,0.0003797,120]
[311978174,1705527579501,-150.5,0.0003797,120]
[311978175,1705527579524,-150.5,0.0003797,120]
[311978176,1705527579546,-150.5,0.0003797,120]
[311978177,1705527579569,-158.0,0.0003797,120]
[311978178,1705527579591,-158.0,0.0003797,120]
[311978179,1705527579613,-4555.0,0.0003797,120]
[311978180,1705527579635,-26157.0,0.0003797,120]
[311978181,1705527579658,-4555.0,0.0003797,120]
[311978182,1705527579681,-26157.0,0.0003797,120]
[311978183,1705527579703,-246.0,0.0003798,120]
[311978184,1705527579725,-150.5,0.0003798,120]
[311978185,1705527579747,-241.0,0.0003798,120]
[311978186,1705527579771,-1574.0,0.0003798,120]
[311978187,1705527579794,-150.5,0.0003798,120]
[311978188,1705527579816,-153.0,0.0003798,120]
[311978189,1705527579838,-150.5,0.0003798,120]
[311978190,1705527579862,-150.5,0.0003798,120]
[311978191,1705527579883,-150.5,0.0003798,120]
[311978192,1705527579907,-246.0,0.0003798,120]
[311978193,1705527579929,-150.5,0.0003798,120]
[311978194,1705527579952,-153.0,0.0003798,120]
[311978195,1705527579973,-241.0,0.0003798,120]
[311978196,1705527579996,-191.1,0.0003798,120]
[311978197,1705527580019,-246.0,0.0003798,120]
[311978198,1705527580042,-153.0,0.0003798,120]
[311978199,1705527580066,-241.0,0.0003798,120]
[311978200,1705527580090,-250.24,0.0003798,120]
[311978201,1705527580114,-154.67,0.0003798,120]
[311978202,1705527580137,-241.87,0.0003798,120]
[311978203,1705527580162,-1574.0,0.0003798,120]
[311978204,1705527580185,-1574.0,0.0003798,120]
[311978205,1705527580209,-1579.12,0.0003798,120]
[311978206,1705527580233,-278.0,0.0003798,120]
[311978207,1705527580256,-391.0,0.0003798,120]
[311978208,1705527580279,-150.51,0.0003798,120]
[311978209,1705527580303,-278.0,0.0003798,120]
[311978210,1705527580327,-391.0,0.0003798,120]
[311978211,1705527580350,-278.0,0.0003798,120]
[311978212,1705527580377,-391.0,0.0003798,120]
[311978213,1705527580402,-278.89,0.0003798,120]
[311978214,1705527580427,-394.26,0.0003798,120]
[311978215,1705527580451,-150.5,0.0003798,120]
[311978216,1705527580475,-150.5,0.0003798,120]
[311978217,1705527580499,-240.0,0.0003798,30]
[311978218,1705527580521,-150.5,0.0003798,120]
[311978219,1705527580543,-150.5,0.0003798,120]
[311978220,1705527580566,-240.0,0.0003798,30]
[311978221,1705527580588,-150.5,0.0003798,120]
[311978222,1705527580615,-235.6,0.0003798,120]
[311978223,1705527580638,-240.0,0.0003798,30]
[311978224,1705527580662,-245.65,0.0003798,30]
[311978225,1705527580856,-150.5,0.0003798,120]
[311978226,1705527580880,-150.5,0.0003798,120]
[311978227,1705527580903,-158.0,0.0003798,120]
[311978228,1705527580926,-158.0,0.0003798,120]
[311978229,1705527580950,-158.0,0.0003798,120]
[311978230,1705527580973,-166.7,0.0003798,120]
[311978231,1705527580996,-4555.0,0.0003798,120]
[311978232,1705527581019,-26157.0,0.0003798,120]
[311978233,1705527581043,-4555.0,0.0003798,120]
[311978234,1705527581066,-26157.0,0.0003798,120]
[311978235,1705527581090,-4555.0,0.0003798,120]
[311978236,1705527581114,-4558.7,0.0003798,120]
[311978237,1705527581137,-26157.0,0.0003798,120]
[311978238,1705527581166,-26162.14,0.0003798,120]
[311978239,1705527581190,-241.0,0.0003799,120]
[311978240,1705527581212,-150.5,0.0003799,120]
[311978241,1705527581236,-246.0,0.0003799,120]
[311978242,1705527581260,-1574.0,0.0003799,120]
[311978243,1705527581284,-150.5,0.0003799,120]
[311978244,1705527581308,-153.0,0.0003799,120]
[311978245,1705527581331,-150.5,0.0003799,120]
[311978246,1705527581354,-204.84,0.0003799,120]
[311978247,1705527581379,-150.5,0.0003799,120]
[311978248,1705527581403,-150.5,0.0003799,120]
[311978249,1705527581427,-252.77,0.0003799,120]
[311978250,1705527581451,-246.0,0.0003799,120]
[311978251,1705527581475,-150.5,0.0003799,120]
[311978252,1705527581498,-153.0,0.0003799,120]
[311978253,1705527581520,-150.5,0.0003799,120]
[311978254,1705527581544,-241.0,0.0003799,120]
[311978255,1705527581568,-246.0,0.0003799,120]
[311978256,1705527581591,-153.0,0.0003799,120]
[311978257,1705527581613,-241.0,0.0003799,120]
[311978258,1705527581636,-246.0,0.0003799,120]
[311978259,1705527581659,-153.0,0.0003799,120]
[311978260,1705527581682,-241.0,0.0003799,120]
[311978261,1705527581706,-1574.0,0.0003799,120]
[311978262,1705527581730,-1574.0,0.0003799,120]
[311978263,1705527581753,-1574.0,0.0003799,120]
[311978264,1705527581775,-278.0,0.0003799,120]
[311978265,1705527581799,-391.0,0.0003799,120]
[311978266,1705527581822,-150.5,0.0003799,120]
[311978267,1705527581845,-278.0,0.0003799,120]
[311978268,1705527581867,-391.0,0.0003799,120]
[311978269,1705527581890,-278.0,0.0003799,120]
[311978270,1705527581913,-391.0,0.0003799,120]
[311978271,1705527581937,-278.0,0.0003799,120]
[311978272,1705527581959,-391.0,0.0003799,120]
[311978273,1705527581984,-150.5,0.0003799,120]
[311978274,1705527582006,-150.5,0.0003799,120]
[311978275,1705527582028,-240.0,0.0003799,30]
[311978276,1705527582051,-150.5,0.0003799,120]
[311978277,1705527582073,-150.5,0.0003799,120]
[311978278,1705527582097,-240.0,0.0003799,30]
[311978279,1705527582120,-212.45,0.0003799,120]
[311978280,1705527582143,-150.5,0.0003799,120]
[311978281,1705527582165,-150.5,0.0003799,120]
[311978282,1705527582188,-240.0,0.0003799,30]
[311978283,1705527582210,-166.49,0.0003799,120]
[311978284,1705527582232,-240.0,0.0003799,30]
[311978285,1705527582255,-150.5,0.0003799,120]
[311978286,1705527582277,-234.14,0.0003799,120]
[311978287,1705527582300,-200.74,0.0003799,120]
[311978288,1705527582322,-150.5,0.0003799,120]
[311978289,1705527582344,-252.59,0.0003799,120]
[311978290,1705527582367,-158.0,0.0003799,120]
[311978291,1705527582393,-158.0,0.0003799,120]
[311978292,1705527582416,-158.0,0.0003799,120]
[311978293,1705527582438,-158.0,0.0003799,120]
[311978294,1705527582462,-4555.0,0.0003799,120]
[311978295,1705527582484,-26157.0,0.0003799,120]
[311978296,1705527582508,-4555.0,0.0003799,120]
[311978297,1705527582531,-26157.0,0.0003799,120]
[311978298,1705527582558,-4555.0,0.0003799,120]
[311978299,1705527582585,-4555.0,0.0003799,120]
[311978300,1705527582608,-26157.0,0.0003799,120]
[311978301,1705527582630,-26157.0,0.0003799,120]
[311978302,1705527582653,-3104.74495885,0.00038,30]
[311978303,1705527582677,-612.20760488,0.00038,30]
[311978304,1705527582699,-600.0,0.00038,39]
[311978305,1705527582721,-200.0,0.00038,30]
[311978306,1705527582745,-150.0,0.00038007,120]
[311978307,1705527582768,-1753.82157656,0.00038356,30]
[311978308,1705527582793,-2500.0,0.0003848,38]
[311978309,1705527582817,-1208.0,0.00038797,30]
[311978310,1705527582839,-1873.29952605,0.000388,30]
[311978311,1705527582863,-150.0,0.00038894,120]
[311978312,1705527582888,-161.33874516,0.00039,40]
[311978313,1705527582911,-3282.66724508,0.00039,120]
[311978314,1705527582933,-600.0,0.00039,40]
[311978315,1705527582957,-345.18046401,0.0003922,30]
[311978316,1705527582979,-156.29526719,0.00039234,31]
[311978317,1705527583001,-1000.0,0.00039284,31]
[311978318,1705527583024,-1000.0,0.000394,30]
[311978319,1705527583047,-2000.001,0.0003948,39]
[311978320,1705527583070,-1000.0,0.000395,30]
[311978321,1705527583094,-1000.0,0.000396,30]
[311978322,1705527583117,-1000.0,0.000397,31]
[311978323,1705527583140,-1000.0,0.000398,31]
[311978324,1705527583164,-15730.0,0.000399,60]
[311978325,1705527583188,-1000.0,0.000399,31]
[311978326,1705527583211,-535.41526169,0.00039995,30]
[311978327,1705527583364,-163.04214362,0.0004,30]
[311978328,1705527583424,-586.9338598,0.0004,30]
[311978329,1705527583449,-258.98425986,0.0004,30]
[311978330,1705527583473,-399.32711513,0.0004,30]
[311978331,1705527583496,-989.11573792,0.0004,30]
[311978332,1705527583519,-209.52128775,0.0004,30]
[311978333,1705527583543,-3229.88772542,0.0004,30]
[311978334,1705527583567,-2000.0,0.0004,120]
[311978335,1705527583591,-767.07917389,0.0004,120]
[311978336,1705527583615,-400.0,0.0004,120]
[311978337,1705527583640,-2770.0,0.0004,30]
[311978338,1705527583664,-181.67778314,0.0004,120]
[311978339,1705527583686,-1168.97417004,0.0004,120]
[311978340,1705527583708,-205.39260875,0.0004,30]
[311978341,1705527583731,-297.99413396,0.0004,30]
[311978342,1705527583763,-320.08516786,0.0004,30]
[311978343,1705527583786,-1239.18840826,0.0004,30]
[311978344,1705527583809,-1098.31069267,0.0004,120]
[311978345,1705527583833,-1015.86278578,0.0004,30]
[311978346,1705527583857,-600.0,0.0004,41]
[311978347,1705527583879,-263.34174725,0.0004,120]
[311978348,1705527583902,-500.0,0.0004,30]
[311978349,1705527583924,-500.0,0.0004,30]
[311978350,1705527583946,-500.0,0.0004,30]
[311978351,1705527583967,-500.0,0.0004,30]
[311978352,1705527583989,-500.0,0.0004,30]
[311978353,1705527584010,-518.25,0.0004,30]
[311978354,1705527584031,-15169.24769374,0.0004,30]
[311978355,1705527584052,-350.0,0.0004,120]
[311978356,1705527584074,-21972.68244359,0.0004,40]
[311978357,1705527584096,-1279.34261351,0.0004,30]
[311978358,1705527584119,-400.06944698,0.0004,30]
[311978359,1705527584140,-1020.11279616,0.0004,30]
[311978360,1705527584163,-254.91107827,0.0004,30]
[311978361,1705527584185,-10000.0,0.0004,30]
[311978362,1705527584208,-200.0,0.0004,30]
[311978363,1705527584229,-1000.0,0.0004,30]
[311978364,1705527584254,-1000.0,0.0004,32]
[311978365,1705527584277,-2500.0,0.0004048,40]
[311978366,1705527584300,-5000.0,0.000405,30]
[311978367,1705527584323,-150.0,0.000405,30]
[311978368,1705527584347,-150.0,0.00040659,120]
[311978369,1705527584372,-500.0,0.0004089,30]
[311978370,1705527584394,-400.0,0.00040932,120]
[311978371,1705527584416,-350.0,0.00040986,120]
[311978372,1705527584438,-500.0,0.00040987,31]
[311978373,1705527584464,-1000.0,0.00041,60]
[311978374,1705527584487,-1000.0,0.00041,120]
[311978375,1705527584508,-200179.27167966,0.00041,30]
[311978376,1705527584531,-300.0,0.00041,42]
[311978377,1705527584554,-150.0,0.00041,30]
[311978378,1705527584576,-1000.0,0.00041014,30]
[311978379,1705527584597,-478.92768217,0.00041042,100]
[311978380,1705527584620,-1052.95,0.00041095,30]
[311978381,1705527584643,-500.0,0.00041095,30]
[311978382,1705527584665,-500.0,0.00041095,30]
[311978383,1705527584687,-500.0,0.00041095,30]
[311978384,1705527584710,-628.28,0.00041095,30]
[311978385,1705527584731,-500.0,0.00041095,30]
[311978386,1705527584753,-500.0,0.00041095,30]
[311978387,1705527584775,-500.0,0.00041095,30]
[311978388,1705527584798,-500.0,0.00041095,30]
[311978389,1705527584818,-500.0,0.00041095,30]
[311978390,1705527584840,-500.0,0.00041095,30]
[311978391,1705527584863,-500.0,0.00041095,30]
[311978392,1705527584884,-500.0,0.00041095,30]
[311978393,1705527584907,-613.60876159,0.00041095,30]
[311978394,1705527584929,-1000.0,0.00041095,30]
[311978395,1705527584951,-1000.0,0.00041095,30]
[311978396,1705527584973,-1000.0,0.00041095,30]
[311978397,1705527584996,-1000.0,0.00041095,30]
[311978398,1705527585018,-603.71012375,0.00041095,30]
[311978399,1705527585041,-510.0,0.00041095,120]
[311978400,1705527585065,-500.0,0.00041095,60]
[311978401,1705527585087,-1411.80627096,0.00041095,120]
[311978402,1705527585113,-150.0,0.000411,30]
[311978403,1705527585140,-150.0,0.00041135,120]
[311978404,1705527585164,-150.0,0.0004122,30]
[311978405,1705527585188,-1052.95,0.00041232,30]
[311978406,1705527585211,-150.0,0.0004125,30]
[311978407,1705527585235,-150.0,0.0004125,30]
[311978408,1705527585258,-1000.0,0.0004127,30]
[311978409,1705527585281,-1052.95,0.00041369,30]
[311978410,1705527585305,-510.0,0.00041369,120]
[311978411,1705527585328,-1000.0,0.0004137,120]
[311978412,1705527585351,-150.0,0.000414,30]
[311978413,1705527585376,-150.0,0.000414,30]
[311978414,1705527585400,-150.0,0.000414,30]
[311978415,1705527585427,-150.0,0.000414,30]
[311978416,1705527585452,-500.0,0.00041438,30]
[311978417,1705527585477,-2500.0,0.0004148,41]
[311978418,1705527585501,-150.0,0.000415,31]
[311978419,1705527585527,-1052.95,0.00041506,30]
[311978420,1705527585555,-150.0,0.0004158,30]
[311978421,1705527585580,-150.0,0.00041625,30]
[311978422,1705527585602,-150.0,0.00041625,30]
[311978423,1705527585629,-1052.95,0.00041643,30]
[311978424,1705527585651,-510.0,0.00041643,120]
[311978425,1705527585673,-500.0,0.00041643,60]
[311978426,1705527585697,-150.0,0.000417,30]
[311978427,1705527585720,-150.0,0.0004176,30]
[311978428,1705527585741,-1052.95,0.0004178,30]
[311978429,1705527585763,-1000.0,0.000418,30]
[311978430,1705527585785,-270.0,0.000418,30]
[311978431,1705527585970,-1000.0,0.000418,30]
[311978432,1705527585993,-1000.0,0.000418,30]
[311978433,1705527586016,-1000.0,0.00041818,30]
[311978434,1705527586038,-400.0,0.00041863,120]
[311978435,1705527586060,-1860.75593898,0.000419,60]
[311978436,1705527586083,-3118.0,0.000419,30]
[311978437,1705527586104,-1052.95,0.00041917,30]
[311978438,1705527586128,-510.0,0.00041917,120]
[311978439,1705527586150,-150.0,0.0004194,30]
[311978440,1705527586173,-350.0,0.00041973,120]
[311978441,1705527586195,-500.0,0.00041986,30]
[311978442,1705527586225,-500.0,0.00041987,33]
[311978443,1705527586249,-501.64449796,0.00042,30]
[311978444,1705527586271,-1576.6303809,0.00042,120]
[311978445,1705527586293,-361.83460759,0.00042,120]
[311978446,1705527586316,-1607.90238213,0.00042,60]
[311978447,1705527586339,-397.49,0.00042,30]
[311978448,1705527586362,-1088.45605455,0.00042,120]
[311978449,1705527586386,-300.0,0.00042,43]
[311978450,1705527586408,-1000.0,0.00042,90]
[311978451,1705527586431,-1000.0,0.00042,60]
[311978452,1705527586459,-620.0,0.00042,120]
[311978453,1705527586480,-10165.549563,0.00042,30]
[311978454,1705527586502,-1000.0,0.00042,30]
[311978455,1705527586524,-247.34131845,0.00042,30]
[311978456,1705527586546,-304.0,0.00042,120]
[311978457,1705527586569,-2982.0,0.00042,90]
[311978458,1705527586590,-1329.08200043,0.00042,90]
[311978459,1705527586613,-2000.0,0.00042,30]
[311978460,1705527586635,-150.0,0.00042,30]
[311978461,1705527586657,-150.0,0.00042,30]
[311978462,1705527586679,-150.0,0.00042,30]
[311978463,1705527586702,-150.0,0.00042,31]
[311978464,1705527586723,-200.0,0.00042,30]
[311978465,1705527586745,-1000.0,0.00042028,30]
[311978466,1705527586769,-1052.95,0.00042054,30]
[311978467,1705527586792,-150.0,0.0004212,30]
[311978468,1705527586815,-1052.95,0.00042191,30]
[311978469,1705527586838,-510.0,0.00042191,120]
[311978470,1705527586862,-500.0,0.00042191,60]
[311978471,1705527586885,-150.0,0.00042258,120]
[311978472,1705527586908,-150.0,0.000423,30]
[311978473,1705527586929,-150.0,0.000423,30]
[311978474,1705527586952,-150.0,0.000423,30]
[311978475,1705527586975,-150.0,0.000423,30]
[311978476,1705527586998,-1052.95,0.00042328,30]
[311978477,1705527587022,-1034.50130325,0.00042366,30]
[311978478,1705527587044,-788873.0,0.0004242,30]
[311978479,1705527587067,-1052.95,0.00042465,30]
[311978480,1705527587089,-510.0,0.00042465,120]
[311978482,1705527587114,-162.28118436,0.0004247,30]
[311978483,1705527587137,-162.28118436,0.0004247,30]
[311978484,1705527587160,-162.28118436,0.0004247,30]
[311978485,1705527587183,-162.28118436,0.0004247,30]
[311978486,1705527587206,-162.28118436,0.0004247,30]
[311978487,1705527587229,-162.28118436,0.0004247,30]
[311978488,1705527587251,-162.28118436,0.0004247,30]
[311978489,1705527587275,-162.28,0.0004247,30]
[311978490,1705527587298,-222.6675748,0.0004247,30]
[311978491,1705527587321,-222.66,0.0004247,30]
[311978492,1705527587347,-160.41903339,0.0004247,30]
[311978493,1705527587370,-160.41903339,0.0004247,30]
[311978494,1705527587397,-160.41903339,0.0004247,30]
[311978495,1705527587420,-160.41903339,0.0004247,30]
[311978496,1705527587443,-160.41903339,0.0004247,30]
[311978497,1705527587466,-160.41,0.0004247,30]
[311978498,1705527587488,-194.24317673,0.0004247,30]
[311978499,1705527587511,-194.24317673,0.0004247,30]
[311978500,1705527587535,-194.24317673,0.0004247,30]
[311978501,1705527587558,-194.24317673,0.0004247,30]
[311978502,1705527587581,-194.24317673,0.0004247,30]
[311978503,1705527587603,-194.24317673,0.0004247,30]
[311978504,1705527587627,-194.24317673,0.0004247,30]
[311978505,1705527587649,-194.24317673,0.0004247,30]
[311978506,1705527587672,-194.24317673,0.0004247,30]
[311978507,1705527587694,-194.24317673,0.0004247,30]
[311978508,1705527587716,-194.24317673,0.0004247,30]
[311978509,1705527587738,-194.24317673,0.0004247,30]
[311978510,1705527587761,-194.24317673,0.0004247,30]
[311978511,1705527587784,-194.24317673,0.0004247,30]
[311978512,1705527587807,-194.24317673,0.0004247,30]
[311978513,1705527587829,-194.24317673,0.0004247,30]
[311978514,1705527587852,-194.24317673,0.0004247,30]
[311978515,1705527587875,-194.24317673,0.0004247,30]
[311978516,1705527587898,-194.24317673,0.0004247,30]
[311978517,1705527587921,-194.24,0.0004247,30]
[311978518,1705527587944,-170.32070872,0.0004247,30]
[311978519,1705527587967,-170.32070872,0.0004247,30]
[311978520,1705527587991,-170.32070872,0.0004247,30]
[311978521,1705527588014,-170.32070872,0.0004247,30]
[311978522,1705527588036,-170.32070872,0.0004247,30]
[311978523,1705527588060,-170.32070872,0.0004247,30]
[311978524,1705527588082,-170.32070872,0.0004247,30]
[311978525,1705527588105,-170.32070872,0.0004247,30]
[311978526,1705527588128,-170.32070872,0.0004247,30]